Cogmind - Beta 15 @@@ ROGUE MODE // 2025.08.22 @ 23:56:04 Player: Cracklepappy Result: Destroyed by H-71 Marshal with Heavy Mass Driver Performance ------------- Evolutions (5) 2500 Regions Visited (21) 4200 Robots Destroyed (336) 1680 Value Destroyed (12788) 12788 Prototype IDs (219) 4380 Alien Tech Used (1) 200 Bonus (7812) 7812 TOTAL SCORE: 33560 Bonus ------- High Alert Combat Kills 1360 Follower Combat Kills 1439 Entered Garrisons 200 Network Hubs Disabled 200 Met Data Miner 300 Used Data Conduit 3000 Met Imprinter 300 Was Imprinted 300 Acquired ECA 300 Met Zhirov 300 Built Enhanced Grunts 300 A7 Reached Mainframe 300 Met R17 at Cetus 500 Friendly Fire -987 Cogmind --------- Core Integrity 0/1000 Matter 276/300 Energy 99/100 System Corruption 60% Temperature Cool (0) Movement Core (50) Location -5/Hub_04(d) Parts ------- > --- POWER (3) -------- (None) > --- PROPULSION (4) --- (None) > --- UTILITY (5) ------ Experimental Heat Sink > --- WEAPON (6) ------- (None) > --- INVENTORY (5) ---- Wheel High-capacity Matter Pod (108) IFF Parser Phasing Sabre Self-destruct Interrupter (49) Peak State ------------ > --- POWER ------------ Quantum Reactor Quantum Reactor Quantum Reactor > --- PROPULSION ------- Armored Wheel Armored Wheel Armored Wheel Armored Wheel > --- UTILITY ---------- Advanced Cooling System Huge Storage Unit Advanced Salvage Targeting Computer Centrium Medium Armor Plating Centrium Medium Armor Plating > --- WEAPON ----------- Wave Gun Advanced Plasma Cannon KE Penetrator Advanced KE Penetrator Antimatter Cannon Enhanced Gauss Cannon > --- INVENTORY -------- Quantum Reactor Wheel Wheel Compact Wheel Experimental Heat Sink Advanced Cooling System Zionite Biocell High-capacity Matter Pod Matter Compressor IFF Parser Matter Filter Advanced Particle Charger Experimental Thermal Shield Advanced Hacking Suite High-powered Tractor Beam Force Rifle Advanced KE Penetrator Advanced KE Penetrator Advanced KE Penetrator Advanced KE Penetrator Advanced KE Penetrator Scatter Rocket Array Plasma Cutter Phasing Sabre Self-destruct Interrupter [Rating: 117] Favorites ----------- Power Enhanced Nuclear Core Engine Cooled Ion Engine Power Core Enhanced Nuclear Core Reactor Quantum Reactor Propulsion Wheel Wheel Wheel Utility Huge Storage Unit Device Advanced Cooling System Storage Huge Storage Unit Processor Improved Salvage Targeting Computer Hackware Authchip [Propulsion] Protection Light Armor Plating Weapon Heavy Machine Gun Energy Gun Wave Gun Energy Cannon Heavy Ion Cannon Ballistic Gun Heavy Machine Gun Ballistic Cannon Advanced Assault Cannon Launcher Proton Missile Launcher Special Weapon Plasma Cutter Impact Weapon Power Maul Slashing Weapon Phasing Sabre Piercing Weapon Heavy Pick Special Melee Weapon Datajack Build | -11 -10 -10 -9 -9 -9 -8 -7 -7 -7 -7 -6 -6 -6 -6 -6 -5 -5 -5 -5 -5 -5 ------- Run | Yrd Mat Min Mat Sto Gar Mat Fac Low Low Dat Pro Fac Low Low Zio Pro Fac Ext Cet Arc Hub Slots Evolved 10 | . . . 2 . . 2 2 . . . . 2 . . . . 2 . . . . Power 2 | . . . . . . . . . . . . 1 . . . . 1 . . . . Propulsion 2 | . . . . . . 1 1 . . . . . . . . . . . . . . Utility 3 | . . . . . . 1 . . . . . 1 . . . . 1 . . . . Weapon 3 | . . . 2 . . . 1 . . . . . . . . . . . . . . Parts Attached 227 | 10 12 7 13 17 14 10 36 3 2 10 8 18 5 . 2 4 10 19 11 1 15 Power 29 | 2 3 1 2 1 . . 4 . . 1 . 3 . . . . 3 4 4 . 1 Engine 13 | 2 3 1 2 1 . . 3 . . . . 1 . . . . . . . . . Core 11 | . . . . . . . 1 . . 1 . 2 . . . . 3 4 . . . Reactor 5 | . . . . . . . . . . . . . . . . . . . 4 . 1 Propulsion 48 | 4 4 1 3 6 2 2 11 . . . 2 2 . . . 3 . 7 . . 1 Treads . | . . . . . . . . . . . . . . . . . . . . . . Leg . | . . . . . . . . . . . . . . . . . . . . . . Wheel 48 | 4 4 1 3 6 2 2 11 . . . 2 2 . . . 3 . 7 . . 1 Hover . | . . . . . . . . . . . . . . . . . . . . . . Flight . | . . . . . . . . . . . . . . . . . . . . . . Utility 48 | 2 2 4 2 1 2 1 7 . . 3 3 5 2 . . . 1 1 4 1 7 Device 31 | 1 1 1 2 1 2 1 3 . . 3 3 2 2 . . . 1 1 2 1 4 Storage 5 | 1 1 . . . . . 1 . . . . 1 . . . . . . 1 . . Processor 3 | . . . . . . . 1 . . . . 1 . . . . . . . . 1 Hackware 3 | . . . . . . . 2 . . . . 1 . . . . . . . . . Protection 6 | . . 3 . . . . . . . . . . . . . . . . 1 . 2 Artifact . | . . . . . . . . . . . . . . . . . . . . . . Weapon 102 | 2 3 1 6 9 10 7 14 3 2 6 3 8 3 . 2 1 6 7 3 . 6 Energy Gun 12 | . . . 2 1 . . . . . . . 1 1 . . . 4 3 . . . Energy Cannon 13 | . . . . 2 2 4 3 . . . . . . . . . 1 . 1 . . Ballistic Gun 45 | 2 . . 3 5 4 1 2 2 . 4 2 5 2 . 1 1 1 4 1 . 5 Ballistic Cannon 18 | . 3 . 1 . . 2 7 . 1 1 1 1 . . . . . . 1 . . Launcher 6 | . . 1 . . 1 . 1 . 1 1 . . . . . . . . . . 1 Special Weapon 2 | . . . . 1 1 . . . . . . . . . . . . . . . . Impact Weapon 2 | . . . . . 1 . . 1 . . . . . . . . . . . . . Slashing Weapon 2 | . . . . . . . 1 . . . . . . . 1 . . . . . . Piercing Weapon 1 | . . . . . . . . . . . . 1 . . . . . . . . . Special Melee Weapon 1 | . . . . . 1 . . . . . . . . . . . . . . . . Unidentified Prototypes 11 | . . . 2 3 . . 2 1 . . . . . . . . . . 3 . . Corrupted Parts 11 | . . . . . . . . . . . . . . . . 1 . . 4 . 6 System Corruption 61 | . . . . . . . . . . . . . . . . 1 . . 28 . 32 Parts Lost 60 | . 3 6 1 4 3 . 5 . . 5 7 . 1 . . . 1 1 . . 23 Power 9 | . 1 2 . . . . . . . 1 . . . . . . . 1 . . 4 Propulsion 17 | . 1 3 . 2 1 . 4 . . . 2 . . . . . . . . . 4 Utility 12 | . 1 . . 1 . . . . . 1 1 . 1 . . . . . . . 7 Weapon 22 | . . 1 1 1 2 . 1 . . 3 4 . . . . . 1 . . . 8 Highest Loss Streak 21 | . 1 5 1 1 1 . 2 . . 5 2 . 1 . . . 1 1 . . 21 To Critical Strikes . | . . . . . . . . . . . . . . . . . . . . . . Average Backups 23 | 3 19 24 24 24 24 24 24 24 25 24 21 23 24 25 24 23 23 23 23 23 18 Power 1 | . 3 1 1 1 1 1 1 2 2 1 2 . 1 1 1 1 . . 1 1 . Propulsion 3 | 1 2 3 3 4 3 3 2 3 3 4 2 2 4 4 4 3 3 4 3 3 2 Utility 7 | . 5 7 6 4 7 7 6 7 8 8 10 11 9 9 9 10 10 10 9 10 8 Weapon 9 | . 6 10 12 12 10 11 12 10 10 7 3 7 8 9 8 8 8 8 9 8 5 Tool/Special . | . . . . . . . . . . . . . . . . . . . . . . Unused Backups 74 | 1 4 2 12 10 1 1 17 1 . . 3 6 2 . 1 1 2 2 2 . 6 Power 7 | . 1 . 2 . . . 1 . . . 1 1 . . . . . 1 . . . Propulsion 11 | . . . 2 2 . . 2 . . . . 4 . . . . . . . . 1 Utility 29 | 1 2 2 4 1 . 1 5 . . . 2 1 1 . 1 . 2 . 2 . 4 Weapon 26 | . 1 . 4 7 1 . 9 1 . . . . 1 . . . . 1 . . 1 Tool/Special 1 | . . . . . . . . . . . . . . . . 1 . . . . . Average Slot Usage (%) 93 | . 96 98 99 99 99 99 96 84 85 77 96 89 87 87 87 88 92 96 100 100 76 Engine 6 | . 10 13 11 11 11 9 3 7 7 4 . . 6 6 6 6 5 . . . . Core 3 | . . . . . . . 3 . . 2 7 11 6 6 6 6 11 15 5 . . Wheel 20 | . 27 27 22 21 21 26 27 14 14 14 26 14 12 12 12 13 16 18 22 22 14 Device 12 | . 13 6 10 10 11 18 12 14 14 13 13 13 12 12 12 12 14 16 16 16 13 Storage 8 | . 14 14 11 11 11 9 7 7 7 7 7 6 6 6 6 6 5 5 5 5 3 Processor 2 | . . . . . . . . . . . . 4 6 6 6 6 5 5 5 5 3 Energy Gun 2 | . . . 10 1 . . . . . . . 3 . . . . 3 19 14 8 3 Energy Cannon 5 | . . . . 9 11 22 13 9 7 2 13 2 . . . . . . 1 5 3 Ballistic Gun 20 | . 18 . 18 28 31 1 2 9 14 16 10 26 36 37 32 35 29 13 11 11 9 Ballistic Cannon 8 | . 9 27 14 3 . 12 19 21 21 14 16 3 . . . . . . 3 8 7 Peak Build Rating 117 | 7 9 9 18 22 22 33 56 61 61 67 65 84 84 84 85 85 89 96 113 113 117 Average Rating 50 | 6 8 8 15 20 21 31 44 59 60 58 50 75 80 84 84 78 82 92 104 112 87 On Entrance 55 | . 7 9 9 18 20 22 33 56 61 60 65 52 82 84 84 85 74 87 95 113 112 Naked Turns 27 | . . . . . . . . . . . . . . . . . . . . . 27 Heaviest Build 193 | 14 92 94 102 103 103 116 128 129 130 132 132 133 129 129 129 128 140 150 185 188 193 Greatest Support 64 | 20 20 20 26 26 20 32 60 56 56 56 64 60 56 56 56 60 56 56 52 48 48 Greatest Overweight (x) 10 | . 4 4 5 10 5 5 3 2 2 2 3 2 2 2 2 2 2 3 3 3 8 Average Overweight (x) 2 | . 3 4 4 5 4 3 1 2 2 1 1 2 2 2 2 2 2 2 2 3 1 Largest Inventory Capacity 25 | 8 25 25 25 25 25 25 25 25 25 25 25 25 25 25 25 25 25 25 25 25 25 Average Capacity 24 | 7 23 25 25 25 25 25 25 25 25 25 25 25 25 25 25 25 25 25 25 25 20 Most Carried 25 | 8 25 25 25 25 25 25 25 25 25 25 25 25 25 25 25 25 25 25 25 25 25 Average Carried 23 | 3 19 24 24 24 24 24 24 24 24 24 23 24 24 24 24 24 24 24 24 24 19 Final Capacity 25 | 8 25 25 25 25 25 25 25 25 25 25 25 25 25 25 25 25 25 25 25 25 5 Final Carried 25 | 8 25 24 25 25 25 25 25 25 25 25 25 25 25 25 25 25 25 25 25 25 5 Class Distribution -------------------- 35% | Executioner 28% | Scavenger-Gunner 15% | Mutant 10% | Scavenger-Executioner 6% | Gunner Dominant Class ---------------- Mutant | -10/Materials Mutant | -10/Mines Scavenger-Gunner | -9/Materials Scavenger-Gunner | -9/Storage Scavenger-Gunner | -9/Garrison Commander-Gunner | -8/Materials Scavenger-Gunner | -7/Factory Executioner | -7/Lower Caves Executioner | -7/Lower Caves Executioner | -7/Data Miner Executioner | -6/Proximity Caves Derelict-Executioner | -6/Factory Executioner | -6/Lower Caves Executioner | -6/Lower Caves Executioner | -6/Zion Executioner | -5/Proximity Caves Executioner | -5/Factory Scavenger-Executioner | -5/Extension Scavenger-Executioner | -5/Cetus Scavenger-Executioner | -5/Archives Scavenger-Executioner | -5/Hub_04(d) Resources | -11 -10 -10 -9 -9 -9 -8 -7 -7 -7 -7 -6 -6 -6 -6 -6 -5 -5 -5 -5 -5 -5 ----------- Run | Yrd Mat Min Mat Sto Gar Mat Fac Low Low Dat Pro Fac Low Low Zio Pro Fac Ext Cet Arc Hub Matter Collected 12634 | 402 937 353 572 989 860 217 1376 210 155 718 877 1247 964 256 18 192 269 730 265 225 802 Remotely 246 | . . 25 . . . . 96 . . . . 125 . . . . . . . . . Salvage Created 14873 | 275 1042 274 888 1784 1148 306 1624 118 72 288 466 1184 1299 380 . 114 424 1333 720 121 1013 Parts 761 | 15 67 21 58 105 66 19 89 7 7 9 12 29 61 19 . 3 32 47 35 11 49 Haulers Intercepted 18 | . 2 . 2 6 . 2 2 . . . . 3 . . . . . . . . 1 Recyclers Shooed 13 | . 8 1 1 . . . 2 . . . . 1 . . . . . . . . . Parts Field Recycled . | . . . . . . . . . . . . . . . . . . . . . . Retrieved Matter . | . . . . . . . . . . . . . . . . . . . . . . Parts Self-Destructed 121 | . . . . . . . . 3 6 . 20 . 59 19 . 14 . . . . . Prevented 1 | . . . . . . . . . . . . . . . . 1 . . . . . Kills | -11 -10 -10 -9 -9 -9 -8 -7 -7 -7 -7 -6 -6 -6 -6 -6 -5 -5 -5 -5 -5 -5 ------- Run | Yrd Mat Min Mat Sto Gar Mat Fac Low Low Dat Pro Fac Low Low Zio Pro Fac Ext Cet Arc Hub Combat Hostiles Destroyed 229 | . 16 10 19 24 24 5 24 1 4 4 13 8 24 6 . 2 4 15 8 . 18 Melee 1 | . . . . . . . . . . . . . . . . . . . . . 1 Guns 123 | . 13 . 12 18 14 . 1 . . 1 2 7 24 6 . 2 4 13 . . 6 Cannons 69 | . 3 7 7 6 7 5 18 1 1 3 7 1 . . . . . . . . 3 AOE 22 | . . 3 . . 3 . 1 . 3 . 4 . . . . . . . . . 8 Classes Destroyed 22 | 3 5 1 2 1 2 . 2 1 . . 2 . . . . . . 2 . . 1 Worker 22 | 2 2 1 2 5 . . 5 . . . . 1 . . . . 1 . . . 3 Builder 9 | . 2 . . 1 . . 3 . . . . . . . . . 2 1 . . . Tunneler 13 | 5 . 2 . . . . 6 . . . . . . . . . . . . . . Hauler 18 | . 2 . 2 6 . 2 2 . . . . 3 . . . . . . . . 1 Recycler 24 | 1 6 1 3 4 . . 4 . . . . 3 . . . . . 2 . . . Minesweeper 1 | . . . . . . . . . . . 1 . . . . . . . . . . Mechanic 1 | . . . 1 . . . . . . . . . . . . . . . . . . Operator 4 | . . . 1 1 . 1 1 . . . . . . . . . . . . . . Drone 1 | . . . . . . . . . . . 1 . . . . . . . . . . Watcher 12 | . 3 . 2 2 . . 1 . . . . 1 . . . . 1 . 2 . . Swarmer 59 | . 9 6 10 4 9 . 3 . 3 . 2 . 9 . . . . 3 . . 1 Saboteur 1 | . . . . . . . . . . . . . . . . . . . . . 1 Grunt 77 | . 7 2 6 9 4 2 5 . . . 5 7 10 5 . 2 . 5 . . 8 Brawler 3 | . . . . 1 . . . . . . 2 . . . . . . . . . . Duelist 2 | . . . . . . . 1 . . . 1 . . . . . . . . . . Researcher 1 | . . . . . . . . 1 . . . . . . . . . . . . . Sentry 44 | . . 2 3 10 6 3 7 1 . . 1 1 2 . . . 2 4 . . 2 Specialist 5 | . . . . . 3 . . . . . . . . . . . 2 . . . . Hunter 9 | . . . . . . . 3 . 1 . 1 . 1 . . . . 1 . . 2 Programmer 12 | . . . . . 2 . 5 . . . . . 2 1 . . . . . . 2 Behemoth 1 | . . . . . . . . . . . . . . . . . . 1 . . . Cetus Guard 8 | . . . . . . . . . . . . . . . . . . . 8 . . Enhanced Grunt 4 | . . . . . . . . . . 4 . . . . . . . . . . . Lightning 2 | . . . . . . . . . . . . . . . . . . . . . 2 Decomposer 2 | . . . . . . . . . . . . . 2 . . . . . . . . Thug 1 | . . . . . . . . . . . . . . . . . . 1 . . . Butcher 1 | . . . . . . . . . . . . . . . . . . 1 . . . Fireman 1 | . . . . . . . . . . . . . . . . . . 1 . . . Best Kill Streak 10 | 8 10 5 6 9 4 3 5 1 3 2 5 3 7 3 . 2 5 4 5 . 9 Combat Bots Only 9 | . 3 3 5 6 4 2 5 1 3 2 5 2 7 3 . 2 2 4 4 . 9 Max Kills in Single Turn 8 | 2 1 3 3 2 2 1 2 1 3 1 2 2 2 1 . 1 2 1 2 . 8 Gunslinging 1 | . . . . . . . . . . . . . 1 . . . . . . . . Exploded 8 | . . 3 . . 2 . 1 . 3 . 2 . . . . . . . . . 8 Melee 1 | . . . . . . . . . . . . . . . . . . . . . 1 Uniques/NPCs Destroyed . | . . . . . . . . . . . . . . . . . . . . . . Combat | -11 -10 -10 -9 -9 -9 -8 -7 -7 -7 -7 -6 -6 -6 -6 -6 -5 -5 -5 -5 -5 -5 -------- Run | Yrd Mat Min Mat Sto Gar Mat Fac Low Low Dat Pro Fac Low Low Zio Pro Fac Ext Cet Arc Hub Hostile Shots Fired 1382 | . 67 70 55 73 94 29 261 6 7 65 93 66 89 13 . 5 53 79 29 . 228 Missed 417 | . 14 14 10 21 31 8 84 4 4 25 27 24 34 5 . 3 20 20 9 . 60 Hits 965 | . 53 56 45 52 63 21 177 2 3 40 66 42 55 8 . 2 33 59 20 . 168 Melee 4 | . . . . 1 . . . . . . . . . . . . . . . . 3 Projectile 961 | . 53 56 45 51 63 21 177 2 3 40 66 42 55 8 . 2 33 59 20 . 165 Critical Strikes 40 | . 1 4 . 3 4 . 5 . . . 3 1 2 . . . . 3 1 . 13 Part Disruptions 2 | . . . . . . . . . . 2 . . . . . . . . . . . Damage Taken 15092 | . 489 649 433 674 794 256 1643 10 42 1773 1159 542 823 107 . 39 492 925 362 . 3880 Core 2297 | . 82 102 65 85 175 25 113 5 . 281 144 68 134 . . . 41 186 51 . 740 Absorbed by Shields 348 | . . . . . . . . . . . . . . . . . . 197 151 . . Ignored by Resistances 604 | . . . . . . . . . . 116 . 24 185 30 . . . 145 . . 104 Core Remaining (%) 56 | 100 . 26 . . 18 95 . . . . 22 . . . . 76 . . . . . Volleys Fired 672 | 17 83 32 42 71 90 14 80 11 8 25 26 31 31 10 . 7 13 32 10 11 28 Largest 6 | 2 2 2 4 4 4 4 5 6 6 6 6 6 6 6 . 6 6 6 6 6 6 Hottest 386 | 40 60 60 149 147 144 258 265 241 241 229 293 264 180 180 . 175 285 386 337 327 327 Shots Fired 2479 | 34 165 61 153 260 260 56 319 30 18 104 139 181 176 60 . 37 68 183 18 33 124 Gun 1544 | 34 148 . 97 179 175 . 30 16 4 58 39 143 176 60 . 37 66 183 6 24 69 Cannon 902 | . 17 60 56 80 78 56 286 14 13 38 98 38 . . . . 2 . 3 9 54 Launcher 32 | . . 1 . . 7 . 3 . 1 8 2 . . . . . . . 9 . 1 Special 1 | . . . . 1 . . . . . . . . . . . . . . . . . Kinetic 1825 | 34 165 60 112 191 175 20 175 19 12 87 90 146 176 60 . 37 60 88 3 28 87 Thermal 619 | . . . 41 69 78 36 141 11 5 9 47 35 . . . . 8 95 3 5 36 Explosive 12 | . . 1 . . 7 . . . 1 . 2 . . . . . . . . . 1 Electromagnetic 23 | . . . . . . . 3 . . 8 . . . . . . . . 12 . . Robot Hit Streak 26 | 16 11 9 17 26 9 5 13 3 3 8 9 11 11 5 . 4 5 18 8 8 3 Robot Miss Streak 12 | 2 8 6 4 4 5 2 4 2 4 4 6 12 6 7 . 4 3 7 1 1 9 Penetration Max 1 | . . . . . . 1 . . . . . 1 . . . . . 1 1 . 1 Secondary Targets 21 | . 1 . . . . . . . . . . . 14 . . . 1 5 . . . Max Gunslinging Chain 2 | . 1 . . . . . . . . . . . 2 . . . 1 1 . . . Shots Hit Robots 1223 | 23 95 36 72 139 138 22 148 14 5 49 62 93 83 21 . 16 30 109 13 18 37 Core Hits 631 | 9 45 16 38 58 48 9 52 4 5 24 42 51 43 13 . 7 13 71 19 8 56 Critical Kills 8 | . . . 1 . 1 . 3 . . . . 1 . . . . . . . 1 1 Critical Parts Destroyed 7 | 1 1 . . 1 . . . . . . . . 1 . . . . 1 . . 2 Critical Strikes 40 | 1 1 2 3 2 1 . 9 . . 4 5 1 1 . . . . 3 . 2 5 Burn 5 | . . . 2 1 . . . . . . . . . . . . . 2 . . . Meltdown 2 | . . . . . . . 2 . . . . . . . . . . . . . . Destroy 13 | 1 1 . 1 1 1 . 1 . . . . 1 1 . . . . 1 . 1 3 Blast 20 | . . 2 . . . . 6 . . 4 5 . . . . . . . . 1 2 Melee Attacks 63 | . . . . . 22 . 11 1 . 14 . 10 . . 1 . . . . . 4 Impact 20 | . . . . . 5 . . 1 . 14 . . . . . . . . . . . Slashing 15 | . . . . . . . 10 . . . . . . . 1 . . . . . 4 Piercing 10 | . . . . . . . . . . . . 10 . . . . . . . . . Sneak Attacks 23 | . . . . . 17 . 6 . . . . . . . . . . . . . . Combat Hostiles . | . . . . . . . . . . . . . . . . . . . . . . Follow-up Attacks . | . . . . . . . . . . . . . . . . . . . . . . Damage Inflicted 32018 | 301 1304 811 1347 2429 2499 690 4512 294 277 1180 2193 2303 2282 537 . 491 868 3466 1037 478 2719 Guns 17852 | 301 1157 . 811 1683 1535 . 241 184 30 560 394 1807 2282 537 . 491 868 3466 149 285 1071 Cannons 10811 | . 147 686 536 746 640 690 3634 110 72 521 1386 496 . . . . . . 89 193 865 Explosions 3047 | . . 125 . . 324 . 335 . 175 99 413 . . . . . . . 799 . 777 Melee 302 | . . . . . . . 302 . . . . . . . . . . . . . . Ramming 6 | . . . . . . . . . . . . . . . . . . . . . 6 Kinetic 21502 | 301 1304 686 1029 1843 1535 283 2156 209 74 1026 1172 2009 2282 537 . 491 817 1710 97 416 1525 Thermal 7072 | . . . 318 586 640 407 1719 85 28 55 608 294 . . . . 51 1756 52 62 411 Explosive 1814 | . . 125 . . 324 . . . 175 . 413 . . . . . . . . . 777 Electromagnetic 1322 | . . . . . . . 335 . . 99 . . . . . . . . 888 . . Impact . | . . . . . . . . . . . . . . . . . . . . . . Slashing 302 | . . . . . . . 302 . . . . . . . . . . . . . . Piercing . | . . . . . . . . . . . . . . . . . . . . . . Highest Corruption 60 | . 2 2 . . 3 . 3 3 3 3 3 . 1 1 1 1 . . 18 18 60 Average Corruption 4 | . 2 2 . . 2 . 2 3 3 3 3 . 1 1 1 1 . . 12 17 26 Corruption Purged 16 | . . . . . . . . . . . . . . . . . . . 10 3 3 Corruption Blocked . | . . . . . . . . . . . . . . . . . . . . . . Effects 163 | . 14 13 . . 23 . 16 8 10 12 14 . . 3 1 . . . 13 8 28 Message Errors 32 | . 3 3 . . 6 . 4 1 2 1 1 . . . 1 . . . 4 2 4 Matter Fused 39 | . 3 3 . . 4 . 6 1 2 5 6 . . 2 . . . . 3 1 3 Heat Flow Errors 24 | . 3 2 . . 3 . 1 2 3 . 2 . . 1 . . . . 1 2 4 Energy Discharges 18 | . 2 . . . 5 . 3 1 . 2 2 . . . . . . . 1 1 1 Parts Rejected 4 | . 1 . . . . . . . . 1 1 . . . . . . . . . 1 Parts Fused 2 | . . 1 . . . . . . . . 1 . . . . . . . . . . Data Loss (minor) 17 | . 1 2 . . 1 . . 1 2 1 1 . . . . . . . 3 . 5 Data Loss (major) 8 | . 1 . . . 2 . 1 1 . 1 . . . . . . . . 1 1 . Misfires 2 | . . . . . . . . . . 1 . . . . . . . . . . 1 Alerts 6 | . . 1 . . 2 . 1 1 1 . . . . . . . . . . . . Misdirections 1 | . . . . . . . . . . . . . . . . . . . . . 1 Weapon Failures 10 | . . 1 . . . . . . . . . . . . . . . . . 1 8 Overload Shots . | . . . . . . . . . . . . . . . . . . . . . . Overflow Damage 342 | . . 5 . . 49 . 194 10 . 1 28 . . . . . . . 19 1 35 Projectiles 194 | . . 5 . . . . 125 10 . 1 28 . . . . . . . . 1 24 Explosions 88 | . . . . . 49 . 9 . . . . . . . . . . . 19 . 11 Melee 60 | . . . . . . . 60 . . . . . . . . . . . . . . Knockbacks 42 | . 2 7 . 5 . 1 3 . 1 3 8 3 . . . . . . . 3 6 Impact . | . . . . . . . . . . . . . . . . . . . . . . Kinetic 42 | . 2 7 . 5 . 1 3 . 1 3 8 3 . . . . . . . 3 6 Secondary . | . . . . . . . . . . . . . . . . . . . . . . Self-Inflicted Damage 171 | . . . . . . . . . . . 60 . . . . . . . . . 111 Shots 7 | . . . . . . . . . . . 2 . . . . . . . . . 5 Rammed 2 | . . . . . . . . . . . . . . . . . . . . . 2 Targets Rammed 2 | . . . . . . . . . . . . . . . . . . . . . 2 Kicked . | . . . . . . . . . . . . . . . . . . . . . . Crushed . | . . . . . . . . . . . . . . . . . . . . . . Highest Temperature 553 | . 278 190 129 207 247 232 314 198 216 . 371 315 352 184 . 6 144 331 178 367 553 Average Temperature 81 | . 87 67 41 61 42 82 96 107 127 . 83 95 96 22 . 2 69 95 76 153 160 Received Heat Transfer 3563 | . 132 240 87 252 99 72 345 . . . 216 252 321 39 . . 186 204 . . 1118 Effects 8 | . 1 . . . . . . . . . . . 1 . . . . 2 . . 4 Shutdowns 2 | . . . . . . . . . . . . . . . . . . 1 . . 1 Energy Bleed 1 | . . . . . . . . . . . . . . . . . . . . . 1 Interference 2 | . 1 . . . . . . . . . . . . . . . . 1 . . . Matter Decay 1 | . . . . . . . . . . . . . 1 . . . . . . . . Short Circuit 1 | . . . . . . . . . . . . . . . . . . . . . 1 Damage (minor) 1 | . . . . . . . . . . . . . . . . . . . . . 1 Siege Activations . | . . . . . . . . . . . . . . . . . . . . . . Martial Activations . | . . . . . . . . . . . . . . . . . . . . . . Shielding Activations . | . . . . . . . . . . . . . . . . . . . . . . Robots Disrupted . | . . . . . . . . . . . . . . . . . . . . . . Combat Hostiles . | . . . . . . . . . . . . . . . . . . . . . . Robots Corrupted 10 | . . . . . . . 2 . . . . . . . . . . . 8 . . Combat Hostiles 10 | . . . . . . . 2 . . . . . . . . . . . 8 . . Parts Fried 12 | . . . . . . . 4 . . 1 . . . . . . . . 7 . . Impact Corruptions . | . . . . . . . . . . . . . . . . . . . . . . Robots Melted 4 | . . . . . . . 2 . . . . . . . . . . 2 . . . Combat Hostiles 4 | . . . . . . . 2 . . . . . . . . . . 2 . . . Parts Melted 30 | . . 1 . . 2 3 10 . . . 2 . . . . 1 . 11 . . . Heat Transferred 11704 | . . . 962 1258 1110 629 2550 148 37 111 800 433 . . . . 74 2897 74 87 534 Parts Sabotaged 3 | . . . . . . . . . . . . . . . . . . . . . 3 Parts Stolen . | . . . . . . . . . . . . . . . . . . . . . . Parts Stripped . | . . . . . . . . . . . . . . . . . . . . . . Power Chain Reactions . | . . . . . . . . . . . . . . . . . . . . . . Alert | -11 -10 -10 -9 -9 -9 -8 -7 -7 -7 -7 -6 -6 -6 -6 -6 -5 -5 -5 -5 -5 -5 ------- Run | Yrd Mat Min Mat Sto Gar Mat Fac Low Low Dat Pro Fac Low Low Zio Pro Fac Ext Cet Arc Hub Maximum Alert Level 4 | . . . 1 1 4 2 2 . . . . 1 . . . . . 3 3 1 4 Low Security (%) 51 | 100 100 100 43 79 11 . 33 . . . . . . . . . 100 80 . . 28 Level 1 25 | . . . 56 20 13 15 47 . . . . 100 . . . . . 4 . 100 21 Level 2 13 | . . . . . 36 84 19 . . . . . . . . . . 4 57 . . Level 3 5 | . . . . . 20 . . . . . . . . . . . . 11 42 . 10 Level 4 3 | . . . . . 17 . . . . . . . . . . . . . . . 39 Level 5 . | . . . . . . . . . . . . . . . . . . . . . . High Security . | . . . . . . . . . . . . . . . . . . . . . . Max Security . | . . . . . . . . . . . . . . . . . . . . . . Peak Influence 1382 | 15 119 90 244 256 1382 673 432 . . . . 384 . . . . 107 1093 777 331 1280 Initial 673 | . . 30 . 88 17 673 223 . . . . 313 . . . . 40 44 604 284 112 Average 271 | 3 44 20 175 86 682 473 265 . . . . 292 . . . . 43 188 687 309 668 Influence Increases 11164 | 40 592 260 593 833 1415 416 903 20 100 . 260 588 535 195 . 289 200 1655 373 87 1810 Destroy 0b10 Robot/C 5340 | . 320 200 380 480 600 200 480 20 80 . 240 160 480 120 . 140 80 700 160 . 500 Destroy 0b10 Robot/NC 640 | 40 75 20 55 95 30 20 110 . . . 10 40 . . . . 20 25 10 20 70 Destroy Leader 1020 | . 80 30 98 166 20 54 186 . 20 . 10 18 40 30 . 40 32 74 . . 122 Allied During Kill 1539 | . . . . . 78 51 . . . . . . . . . 109 58 742 167 20 314 Successful Hack 162 | . 39 . 10 6 40 . 26 . . . . 30 . . . . 4 7 . . . Select Force Hacks 60 | . 60 . . . . . . . . . . . . . . . . . . . . Disable Machine 675 | . . . . 75 75 30 45 . . . . 30 . . . . . 45 15 45 315 Anti-Garrison Action 500 | . . . . . 500 . . . . . . . . . . . . . . . . Destroy Structure 613 | . 3 10 5 11 57 31 56 . . . . 10 . . . . 6 32 6 2 384 Advance Influence 300 | . . . . . . . . . . . . 300 . . . . . . . . . Lose Combat Pursuer 315 | . 15 . 45 . 15 30 . . . . . . 15 45 . . . 30 15 . 105 Influence Decreases 9918 | 40 514 338 383 1016 60 1307 964 330 220 . 238 365 515 249 211 224 175 664 743 477 885 Entered New Map 2887 | . . 48 . 122 10 709 268 160 23 . . 9 92 51 211 . 25 46 477 427 209 Time Decay 5130 | 40 494 230 373 457 . 198 646 170 197 . 206 356 413 198 . 184 120 386 206 50 206 Lost Part 495 | . 20 60 10 35 30 . 50 . . . 30 . 10 . . . 10 10 . . 230 Lost Ally 704 | . . . . . 20 100 . . . . 2 . . . . 40 20 222 60 . 240 Purge Threat 702 | . . . . 402 . 300 . . . . . . . . . . . . . . . Squads Dispatched 50 | . 3 . 4 4 . 4 12 . . . 1 5 . . . . 3 1 . . 13 Investigation 10 | . 2 . . 1 . . 4 . . . . 2 . . . . 1 . . . . Extermination 8 | . . . . . . . 5 . . . . 1 . . . . 1 . . . 1 Reinforcement 23 | . 1 . 4 3 . 2 3 . . . . 2 . . . . 1 1 . . 6 Assault 7 | . . . . . . 2 . . . . 1 . . . . . . . . . 4 Garrison 2 | . . . . . . . . . . . . . . . . . . . . . 2 Intercept . | . . . . . . . . . . . . . . . . . . . . . . Searches Triggered . | . . . . . . . . . . . . . . . . . . . . . . Construction Impeded 2 | . . . . . . . 1 . . . . . . . . . . . . . 1 Haulers Reinforced 2 | . . . . . . . . . . . . 2 . . . . . . . . . Active Scanning Responses . | . . . . . . . . . . . . . . . . . . . . . . Cargo Convoy Interrupts . | . . . . . . . . . . . . . . . . . . . . . . Stealth | -11 -10 -10 -9 -9 -9 -8 -7 -7 -7 -7 -6 -6 -6 -6 -6 -5 -5 -5 -5 -5 -5 --------- Run | Yrd Mat Min Mat Sto Gar Mat Fac Low Low Dat Pro Fac Low Low Zio Pro Fac Ext Cet Arc Hub Distress Signals 18 | . 1 . 6 2 . . . . . . 1 . . . . . 1 . 2 . 5 Communications Jammed . | . . . . . . . . . . . . . . . . . . . . . . Distress Signals . | . . . . . . . . . . . . . . . . . . . . . . Times Spotted 343 | . 27 10 32 32 25 14 35 1 3 4 17 10 24 8 . 6 6 39 9 . 41 Peak Tracking Total 15 | . 6 3 6 6 4 4 5 1 4 2 5 2 7 3 . 3 3 7 5 . 15 Tactical Retreats 15 | . 1 . 3 . 1 2 . . . . . . 1 2 . . . 1 1 . 3 Traps | -11 -10 -10 -9 -9 -9 -8 -7 -7 -7 -7 -6 -6 -6 -6 -6 -5 -5 -5 -5 -5 -5 ------- Run | Yrd Mat Min Mat Sto Gar Mat Fac Low Low Dat Pro Fac Low Low Zio Pro Fac Ext Cet Arc Hub Traps Triggered 17 | . 1 . . 2 4 . 3 . . 1 . . . . . . . 4 . . 2 Indirectly . | . . . . . . . . . . . . . . . . . . . . . . Trap Hack Attempts . | . . . . . . . . . . . . . . . . . . . . . . Triggered . | . . . . . . . . . . . . . . . . . . . . . . Disarmed . | . . . . . . . . . . . . . . . . . . . . . . Reprogrammed . | . . . . . . . . . . . . . . . . . . . . . . Reused 1 | . . . . . . . . . . 1 . . . . . . . . . . . Traps Extracted 1 | . . . . . . . . . . 1 . . . . . . . . . . . Installed 3 | . . . . . . . . . . 3 . . . . . . . . . . . Triggered . | . . . . . . . . . . . . . . . . . . . . . . Most Traps Carried 4 | . . . . . 4 4 4 4 4 4 3 3 . . . . . . . . . Machines | -11 -10 -10 -9 -9 -9 -8 -7 -7 -7 -7 -6 -6 -6 -6 -6 -5 -5 -5 -5 -5 -5 ---------- Run | Yrd Mat Min Mat Sto Gar Mat Fac Low Low Dat Pro Fac Low Low Zio Pro Fac Ext Cet Arc Hub Machines Disabled 53 | . . . . 5 11 2 3 . . . 1 2 1 . . . . 3 1 3 21 Max in Single Turn 2 | . . . . 1 1 1 1 . . . 1 1 1 . . . . 1 1 1 2 Garrison Access 1 | . . . . . . 1 . . . . . . . . . . . . . . . Garrison Relay 6 | . . . . . 6 . . . . . . . . . . . . . . . . Network Hub 1 | . . . . . . . . . . . . . . . . . . . . . 1 Energy Cycler 1 | . . . . . . . . . . . . . . . . . . 1 . . . Machines Repaired . | . . . . . . . . . . . . . . . . . . . . . . Machines Dismantled 3 | . . . . . 1 . . . . . . . . . . . . 1 1 . . Machines Sabotaged . | . . . . . . . . . . . . . . . . . . . . . . Overloaded Fab Kills . | . . . . . . . . . . . . . . . . . . . . . . Hacking | -11 -10 -10 -9 -9 -9 -8 -7 -7 -7 -7 -6 -6 -6 -6 -6 -5 -5 -5 -5 -5 -5 --------- Run | Yrd Mat Min Mat Sto Gar Mat Fac Low Low Dat Pro Fac Low Low Zio Pro Fac Ext Cet Arc Hub Machines Accessed 53 | . 10 . 2 8 2 3 10 . . 4 . 4 4 . . . 2 3 1 . . Terminals 37 | . 8 . 1 7 2 3 8 . . . . 2 1 . . . 1 3 1 . . Fabricators 5 | . . . . . . . 2 . . . . 2 . . . . 1 . . . . Repair Stations . | . . . . . . . . . . . . . . . . . . . . . . Recycling Units 2 | . 2 . . . . . . . . . . . . . . . . . . . . Scanalyzers 1 | . . . 1 . . . . . . . . . . . . . . . . . . Garrison Access 1 | . . . . 1 . . . . . . . . . . . . . . . . . Total Hacks 167 | . 28 . 14 20 4 10 27 . . 31 . 12 11 . . . 5 4 1 . . Successful 110 | . 15 . 11 12 3 4 11 . . 31 . 8 11 . . . 2 2 . . . Failed 57 | . 13 . 3 8 1 6 16 . . . . 4 . . . . 3 2 1 . . Catastrophic 19 | . 3 . 1 3 . 2 6 . . . . 1 . . . . 2 . 1 . . Database Lockouts . | . . . . . . . . . . . . . . . . . . . . . . Manual 82 | . 23 . 4 12 1 1 15 . . . . 6 . . . . . 7 1 . 12 Terminals 86 | . 21 . 4 15 4 10 17 . . . . 5 4 . . . 1 4 1 . . Fabricators 21 | . . . . . . . 10 . . . . 7 . . . . 4 . . . . Repair Stations . | . . . . . . . . . . . . . . . . . . . . . . Recycling Units 7 | . 7 . . . . . . . . . . . . . . . . . . . . Scanalyzers 10 | . . . 10 . . . . . . . . . . . . . . . . . . Garrison Access 5 | . . . . 5 . . . . . . . . . . . . . . . . . Terminal Hacks 69 | . 3 . 1 8 2 3 5 . . 31 . 2 11 . . . 1 2 . . . Record 20 | . . . . . . . . . . 11 . . 9 . . . . . . . . Part Schematic 13 | . 2 . . 1 . . 1 . . 9 . . . . . . . . . . . Robot Schematic 11 | . 1 . . . . . 2 . . 8 . . . . . . . . . . . Prototype ID Bank 5 | . . . . 1 . . 1 . . 3 . . . . . . . . . . . Open Door 7 | . . . . 2 . . . . . . . . 2 . . . 1 2 . . . Branch Access Points 3 | . . . 1 . . . 1 . . . . 1 . . . . . . . . . Emergency Access Points 1 | . . . . . 1 . . . . . . . . . . . . . . . . Terminal Index 1 | . . . . 1 . . . . . . . . . . . . . . . . . Unreport Threat 5 | . . . . 3 . 2 . . . . . . . . . . . . . . . Locate Traps 1 | . . . . . . . . . . . . 1 . . . . . . . . . Hauler Manifests 1 | . . . . . . 1 . . . . . . . . . . . . . . . Garrison Registry 1 | . . . . . 1 . . . . . . . . . . . . . . . . Fabricator Hacks 9 | . . . . . . . 4 . . . . 4 . . . . 1 . . . . Network Status 1 | . . . . . . . 1 . . . . . . . . . . . . . . Load Schematic 6 | . . . . . . . 2 . . . . 3 . . . . 1 . . . . Build 2 | . . . . . . . 1 . . . . 1 . . . . . . . . . Repair Station Hacks . | . . . . . . . . . . . . . . . . . . . . . . Recycling Unit Hacks 2 | . 2 . . . . . . . . . . . . . . . . . . . . Retrieve Components 2 | . 2 . . . . . . . . . . . . . . . . . . . . Scanalyzer 10 | . . . 10 . . . . . . . . . . . . . . . . . . Insert Component 5 | . . . 5 . . . . . . . . . . . . . . . . . . Analyze 5 | . . . 5 . . . . . . . . . . . . . . . . . . Garrison Access Hacks 1 | . . . . 1 . . . . . . . . . . . . . . . . . Unlock Access 1 | . . . . 1 . . . . . . . . . . . . . . . . . Unauthorized Hacks 19 | . 10 . . 3 1 1 2 . . . . 2 . . . . . . . . . Terminals 13 | . 8 . . 3 1 1 . . . . . . . . . . . . . . . Botnet 5 | . . . . 3 1 1 . . . . . . . . . . . . . . . Operators 2 | . 2 . . . . . . . . . . . . . . . . . . . . Skim 6 | . 6 . . . . . . . . . . . . . . . . . . . . Fabricators 4 | . . . . . . . 2 . . . . 2 . . . . . . . . . Prioritize 1 | . . . . . . . . . . . . 1 . . . . . . . . . Haulers 1 | . . . . . . . 1 . . . . . . . . . . . . . . Recompile 2 | . . . . . . . 1 . . . . 1 . . . . . . . . . Repair Stations . | . . . . . . . . . . . . . . . . . . . . . . Recycling Units 2 | . 2 . . . . . . . . . . . . . . . . . . . . Tunnel 2 | . 2 . . . . . . . . . . . . . . . . . . . . Scanalyzers . | . . . . . . . . . . . . . . . . . . . . . . Garrison Access . | . . . . . . . . . . . . . . . . . . . . . . Data Cores Recovered 1 | . . . . . . . 1 . . . . . . . . . . . . . . Used 1 | . . . . . . . 1 . . . . . . . . . . . . . . Hacking Detections 39 | . 9 . 2 6 2 3 9 . . . . 4 1 . . . 1 1 1 . . Full Trace Events 6 | . . . . . . . 3 . . . . 1 1 . . . 1 . . . . Feedback Events . | . . . . . . . . . . . . . . . . . . . . . . Feedback Blocked . | . . . . . . . . . . . . . . . . . . . . . . Robot Schematics Acquired 15 | . 1 . . . . . 2 . . 8 . . . . 4 . . . . . . Robots Built . | . . . . . . . . . . . . . . . . . . . . . . Authchips . | . . . . . . . . . . . . . . . . . . . . . . Time . | . . . . . . . . . . . . . . . . . . . . . . Total Robot Build Rating . | . . . . . . . . . . . . . . . . . . . . . . Part Schematics Acquired 48 | . 2 . 5 1 . . 1 . . 9 . . . . 15 . . . . . 15 Parts Built 4 | . . . . . . . 2 . . . . 2 . . . . . . . . . Authchips 2 | . . . . . . . 1 . . . . 1 . . . . . . . . . Time 63 | . . . . . . . 42 . . . . 21 . . . . . . . . . Total Part Build Rating 16 | . . . . . . . 8 . . . . 8 . . . . . . . . . Parts Repaired . | . . . . . . . . . . . . . . . . . . . . . . Time . | . . . . . . . . . . . . . . . . . . . . . . Parts Recycled . | . . . . . . . . . . . . . . . . . . . . . . Recycled Matter . | . . . . . . . . . . . . . . . . . . . . . . Retrieved Matter . | . . . . . . . . . . . . . . . . . . . . . . Retrieved Components 19 | . 19 . . . . . . . . . . . . . . . . . . . . Parts Scanalyzed 5 | . . . 5 . . . . . . . . . . . . . . . . . . Part Schematics Acquired 5 | . . . 5 . . . . . . . . . . . . . . . . . . Parts Damaged . | . . . . . . . . . . . . . . . . . . . . . . Bothacking | -11 -10 -10 -9 -9 -9 -8 -7 -7 -7 -7 -6 -6 -6 -6 -6 -5 -5 -5 -5 -5 -5 ------------ Run | Yrd Mat Min Mat Sto Gar Mat Fac Low Low Dat Pro Fac Low Low Zio Pro Fac Ext Cet Arc Hub Used RIF Installer . | . . . . . . . . . . . . . . . . . . . . . . Robots Hacked 1 | . . . . . . . 1 . . . . . . . . . . . . . . Non-combat 1 | . . . . . . . 1 . . . . . . . . . . . . . . Combat . | . . . . . . . . . . . . . . . . . . . . . . Robot Hacks Applied 1 | . . . . . . . 1 . . . . . . . . . . . . . . find_chute 1 | . . . . . . . 1 . . . . . . . . . . . . . . Relay Couplers Released 23 | . . . . . 21 2 . . . . . . . . . . . . . . . Machine Destruction 23 | . . . . . 21 2 . . . . . . . . . . . . . . . Fabnet Peak Effective % . | . . . . . . . . . . . . . . . . . . . . . . Robots Rewired 22 | . . . . . 8 . . . . . 1 . . . . . . 13 . . . Allies Hacked 1 | . . . . . . . . . . . . . . . . 1 . . . . . Hacks Repelled . | . . . . . . . . . . . . . . . . . . . . . . Allies | -11 -10 -10 -9 -9 -9 -8 -7 -7 -7 -7 -6 -6 -6 -6 -6 -5 -5 -5 -5 -5 -5 -------- Run | Yrd Mat Min Mat Sto Gar Mat Fac Low Low Dat Pro Fac Low Low Zio Pro Fac Ext Cet Arc Hub Total Allies 48 | . . . . . 8 . . . . . 1 . . . 8 . . 26 5 . . Largest Group 18 | . . . . . 6 6 . . . . 1 . . . 8 8 5 18 15 14 13 Highest-Rated Group 961 | . . . . . 149 149 . . . . 20 . . . 253 253 180 655 961 886 727 Highest-Rated Ally 159 | . . . . . 39 39 . . . . 20 . . . 42 42 42 159 159 159 96 Zionite Dispatches 2 | . . . . . . . . . . . . . . . . . . 2 . . . Light 1 | . . . . . . . . . . . . . . . . . . 1 . . . Fire 1 | . . . . . . . . . . . . . . . . . . 1 . . . Initial Warlord ECA Mod 76 | . . . . . . 9 8 8 8 8 7 7 7 7 7 . . . . . . Total Orders 3 | . . . . . 2 . . . . . . . . . . . . . . . 1 STAY 2 | . . . . . 1 . . . . . . . . . . . . . . . 1 FOLLOW 1 | . . . . . 1 . . . . . . . . . . . . . . . . Ally Attacks 338 | . . . . . 27 38 . . . . 2 . . . . 12 3 157 25 . 74 Total Damage 9182 | . . . . . 508 701 . . . . 39 . . . . 379 61 3106 539 . 3849 Kills 59 | . . . . . 7 7 . . . . . . . . . 5 . 22 . . 18 Allies Corrupted 4 | . . . . . . . . . . . . . . . . . . . . . 4 Allies Melted 1 | . . . . . . 1 . . . . . . . . . . . . . . . Intel | -11 -10 -10 -9 -9 -9 -8 -7 -7 -7 -7 -6 -6 -6 -6 -6 -5 -5 -5 -5 -5 -5 ------- Run | Yrd Mat Min Mat Sto Gar Mat Fac Low Low Dat Pro Fac Low Low Zio Pro Fac Ext Cet Arc Hub Active Infowar (turns) 5286 | 77 1734 364 . . . . . . . . . 507 756 . . 780 332 568 . . 168 IFF 3111 | . . . . . . . . . . . . 507 756 . . 780 332 568 . . 168 Seismic 2175 | 77 1734 364 . . . . . . . . . . . . . . . . . . . Robot Analysis Total 151 | . . . . . . . . . . 151 . . . . . . . . . . . Derelict Logs Recovered 12 | . . 1 . . . . . 1 2 . 3 . 1 2 1 1 . . . . . Drone Launches . | . . . . . . . . . . . . . . . . . . . . . . Drone Recoveries . | . . . . . . . . . . . . . . . . . . . . . . Zionite Intel Received 2 | . . . . . . . . . . . . . . . . . . . . . 2 Component Schematics 1 | . . . . . . . . . . . . . . . . . . . . . 1 Depthwide Sectors/0 1 | . . . . . . . . . . . . . . . . . . . . . 1 Exploration | -11 -10 -10 -9 -9 -9 -8 -7 -7 -7 -7 -6 -6 -6 -6 -6 -5 -5 -5 -5 -5 -5 ------------- Run | Yrd Mat Min Mat Sto Gar Mat Fac Low Low Dat Pro Fac Low Low Zio Pro Fac Ext Cet Arc Hub Turns Passed 19498 | 158 1756 841 944 1478 1829 407 2344 358 519 585 794 818 1304 402 1722 813 332 1128 428 118 420 Spaces Moved 11333 | 104 1003 497 357 719 801 260 1518 241 379 319 506 417 831 269 1279 577 191 597 169 50 249 Core 115 | 1 . . . . . . . . . . . . . . . . . . . . 114 Treads . | . . . . . . . . . . . . . . . . . . . . . . Legs . | . . . . . . . . . . . . . . . . . . . . . . Wheels 11218 | 103 1003 497 357 719 801 260 1518 241 379 319 506 417 831 269 1279 577 191 597 169 50 135 Hover . | . . . . . . . . . . . . . . . . . . . . . . Flight . | . . . . . . . . . . . . . . . . . . . . . . Fastest Speed 50 | 50 80 140 135 135 140 125 112 130 130 115 115 130 130 130 130 126 126 120 122 135 50 Average Speed 131 | 79 131 140 147 155 153 126 122 130 130 126 122 130 130 130 130 129 126 124 133 135 105 Slowest Speed 230 | 80 140 140 155 230 155 155 135 130 130 130 145 130 130 130 130 130 126 138 137 135 210 Overloaded Moves . | . . . . . . . . . . . . . . . . . . . . . . Propulsion Burnouts . | . . . . . . . . . . . . . . . . . . . . . . Robots Hopped . | . . . . . . . . . . . . . . . . . . . . . . Potential Cave-ins . | . . . . . . . . . . . . . . . . . . . . . . Cave-ins Triggered . | . . . . . . . . . . . . . . . . . . . . . . Exploration Rate (%) 57 | 5 97 97 33 88 91 31 34 46 59 81 66 11 84 35 91 59 8 83 68 67 41 Regions Visited 21 Branch Regions 14 Pre-discovered Areas 42 | . 3 . . . . . . 2 . 25 1 . . 1 1 . . . . . 9 Known Exits Taken 8 | . . 1 1 1 . . 1 . . . 1 1 . . . 1 1 . . . . Unknown Exits Taken 12 | 1 1 . . . . 1 . 1 1 1 . . 1 1 1 . . 1 1 1 . Scrap Searched 19 | . . 1 . . . . . 1 4 . 5 . 1 1 2 4 . . . . . Spaces Dug 46 | . . 10 . . 3 5 8 1 1 . 2 8 . . . . 2 . . . 6 Terrain Destroyed 259 | . . 10 . 2 30 25 54 2 12 2 47 13 . . . . 3 3 . 3 53 Melee 20 | . . . . . 3 . 5 1 . . . 7 . . . . . . . . 4 Projectile 164 | . . . . 2 . 25 49 1 6 2 24 6 . . . . 3 3 . 3 40 AOE 75 | . . 10 . . 27 . . . 6 . 23 . . . . . . . . . 9 Terrain Rammed . | . . . . . . . . . . . . . . . . . . . . . . Walls Destroyed . | . . . . . . . . . . . . . . . . . . . . . . Machines Disabled . | . . . . . . . . . . . . . . . . . . . . . . Actions | -11 -10 -10 -9 -9 -9 -8 -7 -7 -7 -7 -6 -6 -6 -6 -6 -5 -5 -5 -5 -5 -5 --------- Run | Yrd Mat Min Mat Sto Gar Mat Fac Low Low Dat Pro Fac Low Low Zio Pro Fac Ext Cet Arc Hub Total 14303 | 140 1274 581 684 929 1191 303 1810 260 393 409 606 596 982 298 1339 624 256 889 337 76 326 Wait 1167 | . 131 24 231 57 157 2 57 . . 12 25 56 102 15 46 31 24 82 93 10 12 Move 11313 | 103 1002 496 356 719 800 259 1517 240 378 318 505 416 830 268 1278 576 190 596 168 49 249 Hop . | . . . . . . . . . . . . . . . . . . . . . . Pick Up 241 | 9 30 10 20 25 6 9 39 2 2 6 12 27 4 2 6 3 5 5 12 2 5 Fast Attach 48 | 7 2 . . 2 . . 5 1 . 8 2 2 . . . . 5 8 1 . 5 Attach 83 | . 3 6 3 3 3 2 9 1 1 4 12 7 2 . 1 2 4 2 4 1 13 Detach 5 | . . . . . . . 2 . . . 2 . . . . . . . . . 1 Swap 213 | 3 9 8 13 15 19 9 30 3 2 11 6 20 8 1 1 3 5 17 25 1 4 Drop 242 | 1 14 5 19 29 7 8 44 1 2 8 8 27 5 2 6 2 10 23 16 2 3 Fire 672 | 17 83 32 42 71 90 14 80 11 8 25 26 31 31 10 . 7 13 32 10 11 28 Melee 63 | . . . . . 22 . 11 1 . 14 . 10 . . 1 . . . . . 4 Ram 2 | . . . . . . . . . . . . . . . . . . . . . 2 Kick . | . . . . . . . . . . . . . . . . . . . . . . Crush . | . . . . . . . . . . . . . . . . . . . . . . Escape Stasis 76 | . . . . 8 24 . 16 . . . . . . . . . . 28 . . . Rewire 151 | . . . . . 55 . . . . . 8 . . . . . . 88 . . . Trap 3 | . . . . . . . . . . 3 . . . . . . . . . . . Miscellaneous 24 | . . . . . 8 . . . . . . . . . . . . 8 8 . . Route ------- -11/Scrapyard -10/Materials (discovered 4 exits: *Mat x3 / [*Min]) -10/Mines (discovered 2 exits: *Mat x2) -9/Materials (discovered 3 exits: Min / *Sto x2) -9/Storage (discovered 2 exits: *Mat / Gar) -9/Garrison (discovered 3 exits: *Mat x3) -8/Materials -7/Factory (discovered 4 exits: *Fac x2 / *Low x2) -7/Lower Caves -7/Lower Caves -7/Data Miner -6/Proximity Caves -6/Factory (discovered 3 exits: Fac / *Low x2) -6/Lower Caves -6/Lower Caves (discovered 2 exits: Fac / *Zio) -6/Zion -5/Proximity Caves -5/Factory (discovered 8 exits: Fac x4 / Upp x2 / *Ext x2) -5/Extension (discovered 3 exits: *Fac x2 / *Cet) -5/Cetus (discovered 2 exits: *Fac / [*Arc]) -5/Archives -5/Hub_04(d) (discovered 1 exit: *Fac) History --------- Turn | Location | Event 25 | -11/Scrapyard | Discovered new exit (range 15) 159 | -11/Scrapyard | Entered Materials 218 | -10/Materials | Discovered new exit (range 5) 291 | -10/Materials | Discovered new exit (range 10) 318 | -10/Materials | Build established: Mutant 591 | -10/Materials | Learned Storage stockpile data 656 | -10/Materials | Learned location of 1 exit from Storage 709 | -10/Materials | Loaded intel: 8 terminal locations 750 | -10/Materials | Identified exit to Materials 779 | -10/Materials | Loaded intel: 1 repair station location 800 | -10/Materials | Learned 4 Subcaves zone layouts 830 | -10/Materials | Learned location of Recycling (-9) 870 | -10/Materials | Learned 2 Storage zone layouts 921 | -10/Materials | Learned Storage terminal intel 1915 | -10/Materials | Entered Mines 2203 | -10/Mines | Core integrity fell below 50% 2278 | -10/Mines | Lost 5 parts (2p2n1w) 2551 | -10/Mines | Discovered exit to Materials (range 9) 2756 | -10/Mines | Entered Materials 2756 | -9/Materials | Evolved 2 slots: Weapon x2 3066 | -9/Materials | Build established: Gunner 3412 | -9/Materials | Build established: Scavenger-Gunner 3455 | -9/Materials | Discovered new exit (range 15) 3507 | -9/Materials | Identified exit to Mines 3507 | -9/Materials | Identified exit to Storage 3700 | -9/Materials | Entered Storage 3701 | -9/Storage | Identified exit to Materials 3704 | -9/Storage | Loaded intel: 12 terminal locations 4180 | -9/Storage | Build established: Gunner 4547 | -9/Storage | Build established: Scavenger-Gunner 5178 | -9/Storage | Identified exit to Garrison 5178 | -9/Storage | Entered Garrison 5256 | -9/Garrison | Triggered checkpoint 5322 | -9/Garrison | Garrison Relay disabled 5450 | -9/Garrison | Triggered checkpoint 5524 | -9/Garrison | Triggered checkpoint 5551 | -9/Garrison | Garrison Relay disabled 5626 | -9/Garrison | Discovered exit to Materials (range 10) 5810 | -9/Garrison | Core integrity fell below 50% 5826 | -9/Garrison | Garrison Relay disabled 5850 | -9/Garrison | Garrison Relay disabled 6308 | -9/Garrison | Triggered checkpoint 6382 | -9/Garrison | Triggered checkpoint 6408 | -9/Garrison | Garrison Relay disabled 6418 | -9/Garrison | Triggered checkpoint 6534 | -9/Garrison | Discovered exit to Materials (range 11) 6553 | -9/Garrison | Discovered exit to Materials (range 60) 6553 | -9/Garrison | Discovered exit to Materials (range 7) 6553 | -9/Garrison | Discovered exit to Materials (range 53) 6617 | -9/Garrison | Triggered checkpoint 6688 | -9/Garrison | Core integrity fell below 20% 6768 | -9/Garrison | Triggered checkpoint 6790 | -9/Garrison | Garrison Relay disabled 7007 | -9/Garrison | Entered Materials 7007 | -8/Materials | Accompanied by 6 allies 7007 | -8/Materials | Evolved 2 slots: Propulsion x1, Utility x1 7239 | -8/Materials | Lost 5 allies 7374 | -8/Materials | Discovered new exit (range 8) 7414 | -8/Materials | Entered Factory 7414 | -7/Factory | Evolved 2 slots: Propulsion x1, Weapon x1 8079 | -7/Factory | Identified exit to Lower Caves 8316 | -7/Factory | Discovered new exit (range 9) 9364 | -7/Factory | Fabricated Arm. Huge Wheel (x2) 9472 | -7/Factory | Discovered new exit (range 7) 9563 | -7/Factory | Identified exit to Factory 9695 | -7/Factory | Build established: Gunner 9758 | -7/Factory | Entered Lower Caves 9765 | -7/Lower Caves | Met a Warlord Commander 9766 | -7/Lower Caves | Learned location of Warlord (-4) 9767 | -7/Lower Caves | Warlord Commander delivered Encrypted Comm Array 9868 | -7/Lower Caves | Found Alien Artifact 9868 | -7/Lower Caves | Identified Core Expander 9868 | -7/Lower Caves | Installed Core Expander, added new Weapon slot 9996 | -7/Lower Caves | Encountered a Warlord checkpoint 10098 | -7/Lower Caves | Discovered new exit (range 8) 10116 | -7/Lower Caves | Entered another Lower Caves area 10171 | -7/Lower Caves | Build established: Executioner 10556 | -7/Lower Caves | Learned 8 Factory zone layouts 10613 | -7/Lower Caves | Discovered new exit (range 7) 10635 | -7/Lower Caves | Entered Data Miner 10635 | -7/Data Miner | Discovered new exit (range 6) 10661 | -7/Data Miner | Met Data Miner 10681 | -7/Data Miner | Learned location of Section 7 (-3) 10681 | -7/Data Miner | Acquired the access code to Warlord's prototype stash 10702 | -7/Data Miner | Received God Mode back door access code from Data Miner 10790 | -7/Data Miner | Interfaced with the Data Conduit 10961 | -7/Data Miner | Core integrity fell below 50% 10983 | -7/Data Miner | Found Exp. Thermal Shield 11026 | -7/Data Miner | Lost 5 parts (1p1u3w) 11220 | -7/Data Miner | Entered Proximity Caves 11455 | -6/Proximity Caves | Spotter reported a threat 11672 | -6/Proximity Caves | Attracted the attention of an 0b10 outpost 11731 | -6/Proximity Caves | Learned Factory stockpile data 11738 | -6/Proximity Caves | Found DCF Scrap (13 items) 11764 | -6/Proximity Caves | Learned Factory emergency access door positions 11868 | -6/Proximity Caves | Spotted B-75 Beast 11904 | -6/Proximity Caves | Spotter reported a threat 11991 | -6/Proximity Caves | Discovered exit to Factory (range 16) 12014 | -6/Proximity Caves | Entered Factory 12014 | -6/Factory | Evolved 2 slots: Power x1, Utility x1 12015 | -6/Factory | Identified exit to Factory 12018 | -6/Factory | Loaded intel: 278 machine locations 12074 | -6/Factory | Identified exit to Lower Caves 12310 | -6/Factory | Build established: Derelict-Executioner 12334 | -6/Factory | Fabricated Arm. Huge Wheel (x2) 12719 | -6/Factory | Build established: Executioner 12791 | -6/Factory | Found Scatter Rocket Array 12832 | -6/Factory | Entered Lower Caves 13413 | -6/Lower Caves | Encountered a Warlord checkpoint 13603 | -6/Lower Caves | Attracted the attention of an 0b10 base 13632 | -6/Lower Caves | Destroyed 7 combat bots 13634 | -6/Lower Caves | Learned location of 1 exit from Factory 13676 | -6/Lower Caves | Learned location of 1 exit from Factory 14046 | -6/Lower Caves | Learned Armory stockpile data 14046 | -6/Lower Caves | Learned Factory terminal intel 14099 | -6/Lower Caves | Discovered new exit (range 8) 14136 | -6/Lower Caves | Entered another Lower Caves area 14284 | -6/Lower Caves | Learned Factory terminal intel 14467 | -6/Lower Caves | Discovered new exit (range 16) 14538 | -6/Lower Caves | Entered Zion 14648 | -6/Zion | System corruption cleaned by Quarantine Array 14671 | -6/Zion | Gained Derelict followers 14697 | -6/Zion | Discovered new exit (range 14) 15100 | -6/Zion | Learned location of 1 exit from Factory 15520 | -6/Zion | Received a hallucinogenic algorithm 15691 | -6/Zion | Met Imprinter 15713 | -6/Zion | Imprinted 15716 | -6/Zion | Declared Zion's savior 16260 | -6/Zion | Entered Proximity Caves 16260 | -5/Proximity Caves | Accompanied by 8 allies 16676 | -5/Proximity Caves | Learned Factory stockpile data 17073 | -5/Proximity Caves | Entered Factory 17073 | -5/Factory | Accompanied by 5 allies 17073 | -5/Factory | Evolved 2 slots: Power x1, Utility x1 17074 | -5/Factory | Identified exit to Factory 17074 | -5/Factory | Identified exit to Upper Caves 17075 | -5/Factory | Identified exit to Extension 17077 | -5/Factory | Loaded intel: 277 machine locations 17078 | -5/Factory | Loaded intel: 28 terminal locations 17405 | -5/Factory | Entered Extension 17405 | -5/Extension | Accompanied by 4 allies 17407 | -5/Extension | Loaded intel: 32 machine locations 17550 | -5/Extension | Rescued a captive Derelict 17550 | -5/Extension | Rescued a captive Derelict 17573 | -5/Extension | Build established: Scavenger-Executioner 17715 | -5/Extension | Zion Fire squad teleported in 17742 | -5/Extension | Rescued a captive Derelict 17743 | -5/Extension | Rescued a captive Derelict 18047 | -5/Extension | Spotted B-75 Beast 18069 | -5/Extension | Destroyed B-75 Beast 18071 | -5/Extension | Spotted B-75 Beast 18082 | -5/Extension | Allies destroyed B-75 Beast 18105 | -5/Extension | Disrupted transfer network 18112 | -5/Extension | Lost 6 allies 18161 | -5/Extension | Rescued a captive Derelict 18184 | -5/Extension | Zion Light squad teleported in 18300 | -5/Extension | Energy Cycler disabled 18301 | -5/Extension | Rescued A7 18301 | -5/Extension | Rescued a captive Derelict 18348 | -5/Extension | Lost 10 allies 18371 | -5/Extension | Zion dispatch access revoked 18481 | -5/Extension | Discovered new exit (range 6) 18500 | -5/Extension | Disrupted transfer network 18533 | -5/Extension | Entered Cetus 18533 | -5/Cetus | Accompanied by 12 allies (A7) 18534 | -5/Cetus | Loaded intel: 24 machine locations 18538 | -5/Cetus | Acquired a Cetus Manufacturing Module code from A7 18556 | -5/Cetus | Spotted Cetus Guard 18556 | -5/Cetus | Spotted Cetus Guard 18559 | -5/Cetus | Spotted Cetus Guard 18559 | -5/Cetus | Spotted Cetus Guard 18566 | -5/Cetus | Destroyed Cetus Guard 18566 | -5/Cetus | Destroyed Cetus Guard 18572 | -5/Cetus | Destroyed Cetus Guard 18575 | -5/Cetus | Destroyed Cetus Guard 18607 | -5/Cetus | System corruption reached 10% 18658 | -5/Cetus | Started Cetus Manufacturing Module 18683 | -5/Cetus | Manufactured an Enhanced Grunt 18696 | -5/Cetus | Escorted A7 to Cetus Mainframe 18708 | -5/Cetus | Manufactured an Enhanced Grunt 18733 | -5/Cetus | Manufactured an Enhanced Grunt 18758 | -5/Cetus | Manufactured an Enhanced Grunt 18779 | -5/Cetus | Discovered new exit (range 15) 18783 | -5/Cetus | Manufactured an Enhanced Grunt 18804 | -5/Cetus | Spotted Cetus Guard 18805 | -5/Cetus | Spotted Cetus Guard 18810 | -5/Cetus | Spotted Cetus Guard 18811 | -5/Cetus | Destroyed Cetus Guard 18815 | -5/Cetus | Spotted Cetus Guard 18816 | -5/Cetus | Destroyed Cetus Guard 18819 | -5/Cetus | Destroyed Cetus Guard 18820 | -5/Cetus | Destroyed Cetus Guard 18828 | -5/Cetus | Discovered exit to Factory (range 15) 18835 | -5/Cetus | Scared off Revision 17 18891 | -5/Cetus | Found Prototype Protection 18891 | -5/Cetus | Identified Zio. Weapon Casing 18961 | -5/Cetus | Entered Archives 18961 | -5/Archives | Accompanied by 14 allies (A7) 18962 | -5/Archives | Loaded intel: 8 machine locations 18966 | -5/Archives | Received a hacking code to weaken MAIN.C 19016 | -5/Archives | Met Zhirov 19022 | -5/Archives | Reinforcements dispatched to Archives 19024 | -5/Archives | Discovered new exit (range 16) 19067 | -5/Archives | Reinforcements dispatched to Archives 19079 | -5/Archives | Entered Hub_04(d) 19079 | -5/Hub_04(d) | Accompanied by 13 allies 19080 | -5/Hub_04(d) | Loaded intel: 104 machine locations 19081 | -5/Hub_04(d) | Allied Derelicts emerged from ambush trap array 19217 | -5/Hub_04(d) | Lost 3 allies 19276 | -5/Hub_04(d) | Retrieved Zion intel report: Depthwide Sectors/-5 19289 | -5/Hub_04(d) | Network Hub disabled 19293 | -5/Hub_04(d) | Spotted Lightning 19294 | -5/Hub_04(d) | Spotted Lightning 19296 | -5/Hub_04(d) | Spotted Lightning 19310 | -5/Hub_04(d) | Garrison activated, responded to threat 19311 | -5/Hub_04(d) | Spotted B-75 Beast 19314 | -5/Hub_04(d) | Destroyed Lightning 19348 | -5/Hub_04(d) | System corruption reached 30% 19359 | -5/Hub_04(d) | Lost 10 allies 19369 | -5/Hub_04(d) | Destroyed Lightning 19379 | -5/Hub_04(d) | First assault squad dispatched 19392 | -5/Hub_04(d) | Core integrity fell below 50% 19402 | -5/Hub_04(d) | Released all parts (4) 19403 | -5/Hub_04(d) | Core integrity fell below 20% 19414 | -5/Hub_04(d) | Destroyed 9 combat bots 19430 | -5/Hub_04(d) | Lost 21 parts (4p4n5u8w) 19447 | -5/Hub_04(d) | Retrieved Zion intel report: Component Schematics 19498 | -5/Hub_04(d) | Discovered exit to Factory (range 16) 19499 | -5/Hub_04(d) | Destroyed by H-71 Marshal with Heavy Mass Driver Last Messages --------------- 19462_ Triggered EM Surge Trap. 19462_ The floor emits a surge of raw power. 19462_ System corrupted (+5). 19466_ ALERT: Hostiles spotted, dispatching reinforcements to Terminal H002. 19470_ System corrupted: Component data lost. 19486_ A>XR7AABRW= HKHWKY#IFB1/UE&FV&KME&RVY%SL 19491_ Slammed into X-67 Chaingunner. 19493_ Triggered EM Surge Trap. 19493_ The floor emits a surge of raw power. 19493_ System corrupted (+3). 19495_ IFF Parser destroyed. 19497_ Slug penetrates K-01 Serf. 19497_ K-01 Serf suffers critical hit (Blast). 19497_ K-01 Serf destroyed. 19498_ U-05 Engineer lays Concrete. 19498_ EXIT=FOUND: FACTORY 19499_ Penetrated by Slug. 19499_ Exp. Heat Sink destroyed. 19499_ Critical hit (Blast). Map ----- +----------------------------------------------------+ | ????????????????# + ## ##########/# | | ????????????????# " " " # #####+#### #??? # | | ????????????????# " " "?# #??? # | | ????????????????# " " " # # " " | | ????????????????? ???# | | ?????????????????#####???#########+#### # | | ????????????????????????????# #? " "" # | | ????????????????????????????# """ """ #??" "T"? ? | | ????????????????????????????# #??" ???? | | ????????????????????????????# """ #???? ???? | | ????????????????????????????# !!! #?????? ???? | | ????????????????????????????# """ ! #??"??"????? | | ????????????????????????????# !#??"??"????? | | ???????????????????????????#; = #??"??"????? | | ??????#####################;;"#########??????????? | | ??????# " " "#???????????????????? | | ??????# | ### #????????????????????? | | ??????# #?# #????????????????????? | | ??????# #?# #??????"""""?"?"?"???? | | ??????# #?# """" [ #??????""T""?"?"?"???? | | ??????# #?# """" #????????????"?"?"???? | | ??????# #?# """" #????????????????????? | | ??????# #?# """"BB #????????????????????? | | ?????#########/########;BB#;########### ????????? | | ?????# x ^ =%= ???????? | | ??""?# x % @ H???????? | | ??T"?# u ^ % % ???????? | | ??""?# ########;################+###???????????? | | ??? + ??????? ?????????????????????????????? | | """ ?# ??????""" """ """?????????????????????????? | | ??????????? ?????????????????????????? | | """??????# """ """ """ #????????""""???????????? | | ?????????# #????????""""???????????? | | ?????????#################????????""""???????????? | | ??????????????????????????????????""""???????????? | | ?????????????????????????????????????????????????? | | ?????????????????????????????????????????????????? | | ???????????????"?"???????????????????????????????? | | ???????????""??"?"???????????????????????????????? | | ???????????"T??"?"???????????????????????????????? | | ???????????""????????????????????????????????????? | | ?????????????????????????????????????????????????? | | ?????????????????????????????????????????????????? | | ?????????????????????????????????????????????????? | | ?????????????????????????????????????????????????? | | ?????????????????????????????????????????????????? | | ?????????????????????????????????????????????????? | | ?????????????????????????????????????????????????? | | ?????????????????????????????????????????????????? | | ?????????????????????????????????????????????????? | +----------------------------------------------------+ Best States ------------- Heat Dissipation 102 Energy Generation 67 Energy Capacity 1140 Matter Stores 300 Matter Capacity 300 Sight Range 16 Terrain Scan Density 10 Armor Coverage 225 Resistance: TH 30 Core Shielding 20 Evasion (%) 50 Particle Charging 25 Salvage Targeting 3 Offensive Hacking 10 Authchip Count 1 Trap Extractor Capacity 6 Item Schematics ----------------- Assault Rifle | -10/Materials | Hacked Heat Sink | -10/Materials | Hacked Wheel | -9/Materials | Scanalyzed Hcp. Matter Pod | -9/Materials | Scanalyzed Lgt. Assault Rifle | -9/Materials | Scanalyzed Imp. Ion Engine | -9/Materials | Scanalyzed Seismic Detector | -9/Materials | Scanalyzed Targeting Computer | -9/Storage | Hacked Arm. Huge Wheel | -7/Factory | Hacked Combat Drone Bay | -7/Data Miner | Free Lgt. Regenerative Plating | -7/Data Miner | Free Biomechanical Wings | -7/Data Miner | Free Gravity Neutralizer | -7/Data Miner | Free Imp. Heavy Machine Gun | -7/Data Miner | Free Gyrokinetic Inverter | -7/Data Miner | Free Imp. Focal Shield | -7/Data Miner | Free Lrn. Proton Cannon | -7/Data Miner | Free HERF Cannon | -7/Data Miner | Free Imp. Trap Scanner | -6/Zion | Archive Adv. Cooling System | -6/Zion | Archive Imp. Thermal Generator | -6/Zion | Archive Adv. Plasma Cannon | -6/Zion | Archive Field Propulsion Drive | -6/Zion | Archive Flexi-carbon Leg | -6/Zion | Archive Impulse Thruster | -6/Zion | Archive Adv. Sensor Array | -6/Zion | Archive Mass Driver | -6/Zion | Archive Imp. System Shield | -6/Zion | Archive Hyp. Coil Gun | -6/Zion | Archive Adv. Terrain Scanner | -6/Zion | Archive Matter Neutralizer | -6/Zion | Archive EM Shield | -6/Zion | Archive Imp. Coolant Injector | -6/Zion | Archive Mic. Fission Core | -5/Hub_04(d) | Z-intel Hvy. Phase Cannon | -5/Hub_04(d) | Z-intel Imp. Remote Datajack | -5/Hub_04(d) | Z-intel Hvy. Flak Cannon | -5/Hub_04(d) | Z-intel Point Defense System | -5/Hub_04(d) | Z-intel IFF Parser | -5/Hub_04(d) | Z-intel Imp. Terrain Scanner | -5/Hub_04(d) | Z-intel Hvy. Ion Cannon | -5/Hub_04(d) | Z-intel ECM Suite | -5/Hub_04(d) | Z-intel Adv. Shield Generator | -5/Hub_04(d) | Z-intel Variable Charge Gun | -5/Hub_04(d) | Z-intel Coil Gun | -5/Hub_04(d) | Z-intel Imp. Weapon Cycler | -5/Hub_04(d) | Z-intel Lrn. Tractor Beam | -5/Hub_04(d) | Z-intel Powered Hammer | -5/Hub_04(d) | Z-intel Robot Schematics ------------------ M-13 Machinist | -10/Materials | Hacked P-60 Hacker | -7/Factory | Hacked I-25 Savior | -7/Factory | Hacked W-25 Informer | -7/Data Miner | Free E-15 Imp | -7/Data Miner | Free G-50 Soldier | -7/Data Miner | Free M-28 Smith | -7/Data Miner | Free Y-64 Sentinel | -7/Data Miner | Free B-48 Gladiator | -7/Data Miner | Free Y-54 Guardian | -7/Data Miner | Free R-10 Processor | -7/Data Miner | Free M-14 Sweeper | -6/Zion | Archive K-01 Serf | -6/Zion | Archive R-06 Scavenger | -6/Zion | Archive G-73 Enforcer | -6/Zion | Archive Fabricated ------------ Arm. Huge Wheel | x2 | -7/Factory | Authchip Arm. Huge Wheel | x2 | -6/Factory | Authchip Repaired ---------- Nothing Alien Tech Used ----------------- Core Expander Achievements -------------- None Challenges ------------ None Game ------ Seed UtilityWardroneSource Manual? 0 Play Time 02:48:53 Cumulative 1281.4 hours Start 2025.08.22 @ 19:52:40 End 2025.08.22 @ 23:56:04 Sessions 3 Manual Loads 0 Difficulty Rogue Special Mode None Game No. 606 Rogue 606 Adventurer 0 Explorer 0 Win Type - Total 23 Types 10/4/3/0/1/1/2/2/0/0 Lore% 92 Gallery% 90 Achievement% 84 Wizard Run 0 Options --------- Layout 0 ASCII 0 Keyboard 0 Movement Numpad Keybinds 0 Fullscreen 2 Font 24/Smallcaps Map View 76x50 Zoom Use 0% Tactical HUD 1 Map Filters NONE Filters SHIFT_HUE(315) Steam 1 RUN: a098f0b7-b733-4062-b876-ba04a77b9586